[Event "Late-Titled-Tuesday-Blitz-September-05-2023"]
[Site "Chess.com"]
[Date "2023.09.05"]
[Round "4"]
[White "jup1978"]
[Black "traack"]
[Result "1-0"]
[WhiteElo "2540"]
[BlackElo "2370"]
[TimeControl "180+1"]
[EndTime "14:41:36 PDT"]
[Termination "jup1978 won by resignation"]

1. d4 {[%clk 0:03:00.9]} 1... Nf6 {[%clk 0:02:58.4]} 2. Nf3 {[%clk 0:02:59.6]}
2... e6 {[%clk 0:02:57.6]} 3. c4 {[%clk 0:02:59.2]} 3... d5 {[%clk 0:02:57.3]}
4. g3 {[%clk 0:02:58.8]} 4... Bb4+ {[%clk 0:02:57.1]} 5. Bd2 {[%clk 0:02:56.8]}
5... Be7 {[%clk 0:02:56.9]} 6. Bg2 {[%clk 0:02:56.7]} 6... O-O {[%clk
0:02:57.2]} 7. O-O {[%clk 0:02:56.7]} 7... c6 {[%clk 0:02:57.2]} 8. b3 {[%clk
0:02:48.8]} 8... b6 {[%clk 0:02:52.7]} 9. Nc3 {[%clk 0:02:45]} 9... Bb7 {[%clk
0:02:53.2]} 10. cxd5 {[%clk 0:02:44.3]} 10... cxd5 {[%clk 0:02:52.3]} 11. Rc1
{[%clk 0:02:43.7]} 11... Nbd7 {[%clk 0:02:49.5]} 12. Bf4 {[%clk 0:02:41.4]}
12... Nh5 {[%clk 0:02:40.3]} 13. Qd2 {[%clk 0:02:26.8]} 13... Nxf4 {[%clk
0:02:39.8]} 14. Qxf4 {[%clk 0:02:27.7]} 14... a6 {[%clk 0:02:35.1]} 15. Na4
{[%clk 0:02:21.7]} 15... b5 {[%clk 0:02:22.4]} 16. Nb2 {[%clk 0:02:17.3]} 16...
Ba3 {[%clk 0:02:08.1]} 17. Rc2 {[%clk 0:02:10.4]} 17... Nf6 {[%clk 0:02:07.7]}
18. Nd3 {[%clk 0:02:05.4]} 18... Bd6 {[%clk 0:02:05]} 19. Nde5 {[%clk
0:02:02.1]} 19... Ne4 {[%clk 0:02:04.1]} 20. Qe3 {[%clk 0:01:58.7]} 20... Rc8
{[%clk 0:01:59.6]} 21. Rfc1 {[%clk 0:01:58]} 21... Qe7 {[%clk 0:01:53.4]} 22.
Nc6 {[%clk 0:01:49.2]} 22... Bxc6 {[%clk 0:01:39.3]} 23. Rxc6 {[%clk 0:01:50.1]}
23... Rxc6 {[%clk 0:01:35]} 24. Rxc6 {[%clk 0:01:51]} 24... Qb7 {[%clk
0:01:35.4]} 25. Qc1 {[%clk 0:01:44.3]} 25... b4 {[%clk 0:01:31.8]} 26. Nd2
{[%clk 0:01:37.3]} 26... Nc3 {[%clk 0:01:25]} 27. Rxc3 {[%clk 0:01:35.5]} 27...
bxc3 {[%clk 0:01:24.8]} 28. Qxc3 {[%clk 0:01:36.4]} 28... Rc8 {[%clk 0:01:18.5]}
29. Qb2 {[%clk 0:01:35.3]} 29... Qc7 {[%clk 0:01:11.4]} 30. Nf1 {[%clk
0:01:21.9]} 30... Qc1 {[%clk 0:01:09.4]} 31. Qxc1 {[%clk 0:01:20.4]} 31... Rxc1
{[%clk 0:01:10.3]} 32. e4 {[%clk 0:01:18]} 32... dxe4 {[%clk 0:01:05.1]} 33.
Bxe4 {[%clk 0:01:18.9]} 33... Ra1 {[%clk 0:01:03.3]} 34. a4 {[%clk 0:01:19.3]}
34... Rd1 {[%clk 0:00:51.3]} 35. Bb7 {[%clk 0:01:12.9]} 35... a5 {[%clk
0:00:49.4]} 36. Kg2 {[%clk 0:01:13]} 36... Rxd4 {[%clk 0:00:49.2]} 37. Ne3
{[%clk 0:01:12.1]} 37... Bc5 {[%clk 0:00:47.9]} 38. Nc4 {[%clk 0:01:03.2]} 38...
Bb4 {[%clk 0:00:46.9]} 39. Ne5 {[%clk 0:00:49.7]} 39... Rd2 {[%clk 0:00:44]} 40.
Nc6 {[%clk 0:00:36]} 40... Bc3 {[%clk 0:00:43.6]} 41. Ba6 {[%clk 0:00:33.4]}
41... Rd6 {[%clk 0:00:41.8]} 42. Bb5 {[%clk 0:00:31.7]} 42... Kf8 {[%clk
0:00:38.7]} 43. f4 {[%clk 0:00:29.7]} 43... Rd2+ {[%clk 0:00:38.3]} 44. Kh3
{[%clk 0:00:28.9]} 44... Rb2 {[%clk 0:00:38.2]} 45. Bc4 {[%clk 0:00:28.2]} 45...
Ke8 {[%clk 0:00:36.2]} 46. Na7 {[%clk 0:00:26.1]} 46... Kd7 {[%clk 0:00:34]} 47.
Nb5 {[%clk 0:00:26.4]} 47... Bb4 {[%clk 0:00:34.2]} 48. Nd4 {[%clk 0:00:26]}
48... Bc5 {[%clk 0:00:29.8]} 49. Nf3 {[%clk 0:00:25.4]} 49... Kc6 {[%clk
0:00:24.3]} 50. Ne5+ {[%clk 0:00:24.9]} 50... Kb6 {[%clk 0:00:21.9]} 51. Nxf7
{[%clk 0:00:25.8]} 51... Bg1 {[%clk 0:00:22]} 52. Ng5 {[%clk 0:00:25.5]} 52...
Rxh2+ {[%clk 0:00:17.5]} 53. Kg4 {[%clk 0:00:23]} 53... h5+ {[%clk 0:00:11.5]}
54. Kf3 {[%clk 0:00:23.3]} 54... Rf2+ {[%clk 0:00:11.2]} 55. Ke4 {[%clk
0:00:22.1]} 55... Rg2 {[%clk 0:00:11.7]} 56. Kf3 {[%clk 0:00:21.2]} 56... Rf2+
{[%clk 0:00:12.2]} 57. Ke4 {[%clk 0:00:18]} 57... h4 {[%clk 0:00:11]} 58. gxh4
{[%clk 0:00:17.4]} 58... Bh2 {[%clk 0:00:11.1]} 59. Nxe6 {[%clk 0:00:17.3]}
59... Bg3 {[%clk 0:00:11.5]} 60. h5 {[%clk 0:00:17.2]} 60... Kc6 {[%clk
0:00:08.1]} 61. f5 {[%clk 0:00:14.3]} 61... Kd6 {[%clk 0:00:08.6]} 62. Nxg7
{[%clk 0:00:13.8]} 62... Ke7 {[%clk 0:00:08.9]} 63. h6 {[%clk 0:00:13.4]} 63...
Rh2 {[%clk 0:00:08.8]} 64. Ne6 {[%clk 0:00:09]} 64... Rxh6 {[%clk 0:00:08.6]}
65. Nd4 {[%clk 0:00:08.5]} 65... Rh4+ {[%clk 0:00:08.3]} 66. Kd3 {[%clk
0:00:07.2]} 66... Bf2 {[%clk 0:00:09.2]} 67. Nc6+ {[%clk 0:00:07.1]} 67... Kd6
{[%clk 0:00:09.5]} 68. Nxa5 {[%clk 0:00:07.6]} 68... Rh5 {[%clk 0:00:09]} 69.
Nb7+ {[%clk 0:00:07.3]} 69... Ke5 {[%clk 0:00:08.9]} 70. Nd8 {[%clk 0:00:05.7]}
70... Kxf5 {[%clk 0:00:08]} 71. Nf7 {[%clk 0:00:05.3]} 71... Rh3+ {[%clk
0:00:06.9]} 72. Ke2 {[%clk 0:00:04.8]} 72... Kf6 {[%clk 0:00:07.8]} 73. Kxf2
{[%clk 0:00:04.1]} 73... Rh2+ {[%clk 0:00:08]} 74. Ke3 {[%clk 0:00:04.3]} 74...
Rh4 {[%clk 0:00:08.1]} 75. Kd3 {[%clk 0:00:04.4]} 75... Rh3+ {[%clk 0:00:07.9]}
76. Kd4 {[%clk 0:00:04]} 76... Rh4+ {[%clk 0:00:08.8]} 77. Kc5 {[%clk
0:00:04.2]} 77... Rh5+ {[%clk 0:00:08.3]} 78. Kb6 {[%clk 0:00:04.6]} 78... Ke7
{[%clk 0:00:09.2]} 79. a5 {[%clk 0:00:05]} 79... Rh6+ {[%clk 0:00:09.2]} 80. Kb7
{[%clk 0:00:04.8]} 80... Rh4 {[%clk 0:00:07.9]} 81. a6 {[%clk 0:00:05.1]} 1-0

[Event "Late-Titled-Tuesday-Blitz-September-05-2023"]
[Site "Chess.com"]
[Date "2023.09.05"]
[Round "4"]
[White "Iball95"]
[Black "Emp3rador"]
[Result "1-0"]
[WhiteElo "2814"]
[BlackElo "2496"]
[TimeControl "180+1"]
[EndTime "14:41:37 PDT"]
[Termination "Iball95 won by resignation"]

1. e4 {[%clk 0:02:59]} 1... e6 {[%clk 0:02:59.8]} 2. d4 {[%clk 0:02:56.3]} 2...
d5 {[%clk 0:03:00.7]} 3. Nc3 {[%clk 0:02:56.6]} 3... dxe4 {[%clk 0:03:01.1]} 4.
Nxe4 {[%clk 0:02:57.5]} 4... Nd7 {[%clk 0:03:01.8]} 5. Nf3 {[%clk 0:02:58]} 5...
Ngf6 {[%clk 0:03:02.4]} 6. Nxf6+ {[%clk 0:02:58.6]} 6... Nxf6 {[%clk 0:03:03.3]}
7. g3 {[%clk 0:02:58.5]} 7... b6 {[%clk 0:03:02.8]} 8. Bb5+ {[%clk 0:02:56]}
8... Bd7 {[%clk 0:03:02.8]} 9. Be2 {[%clk 0:02:43.3]} 9... Bc6 {[%clk
0:03:00.5]} 10. O-O {[%clk 0:02:43]} 10... a6 {[%clk 0:02:46.9]} 11. Ne5 {[%clk
0:02:42.3]} 11... Bb7 {[%clk 0:02:46.6]} 12. Bf3 {[%clk 0:02:40.7]} 12... Bxf3
{[%clk 0:02:46]} 13. Qxf3 {[%clk 0:02:41.6]} 13... Qd5 {[%clk 0:02:46.5]} 14.
Bg5 {[%clk 0:02:28.3]} 14... Qxf3 {[%clk 0:02:44.5]} 15. Nxf3 {[%clk 0:02:29.2]}
15... Be7 {[%clk 0:02:43.5]} 16. Rfe1 {[%clk 0:02:29.3]} 16... h6 {[%clk
0:02:43.2]} 17. Bxf6 {[%clk 0:02:27.1]} 17... Bxf6 {[%clk 0:02:43]} 18. c3
{[%clk 0:02:28]} 18... O-O-O {[%clk 0:02:41.5]} 19. a4 {[%clk 0:02:26.6]} 19...
Kb7 {[%clk 0:02:40.1]} 20. Re2 {[%clk 0:02:23.7]} 20... Rd5 {[%clk 0:02:39.7]}
21. Nd2 {[%clk 0:02:22.9]} 21... c5 {[%clk 0:02:33.3]} 22. dxc5 {[%clk
0:02:20.5]} 22... Rxc5 {[%clk 0:02:32.9]} 23. Ne4 {[%clk 0:02:20.2]} 23... Rd5
{[%clk 0:02:32.9]} 24. Kg2 {[%clk 0:02:10.2]} 24... Rhd8 {[%clk 0:02:24.4]} 25.
Rae1 {[%clk 0:02:04.2]} 25... Be7 {[%clk 0:02:20.5]} 26. f3 {[%clk 0:01:54.1]}
26... b5 {[%clk 0:02:13.1]} 27. axb5 {[%clk 0:01:54.2]} 27... axb5 {[%clk
0:02:14]} 28. h4 {[%clk 0:01:52.9]} 28... Kb6 {[%clk 0:02:10]} 29. Ra1 {[%clk
0:01:39.8]} 29... Rd1 {[%clk 0:02:04.6]} 30. Rxd1 {[%clk 0:01:38.5]} 30... Rxd1
{[%clk 0:02:04]} 31. Rd2 {[%clk 0:01:38.9]} 31... Rxd2+ {[%clk 0:01:58.6]} 32.
Nxd2 {[%clk 0:01:39.8]} 32... Kc5 {[%clk 0:01:55.1]} 33. Kf2 {[%clk 0:01:39.8]}
33... h5 {[%clk 0:01:46.6]} 34. Ke3 {[%clk 0:01:38.6]} 34... Kd5 {[%clk
0:01:42.2]} 35. b3 {[%clk 0:01:38]} 35... Bc5+ {[%clk 0:01:36]} 36. Kd3 {[%clk
0:01:34.9]} 36... f5 {[%clk 0:01:21.5]} 37. c4+ {[%clk 0:01:31.8]} 37... bxc4+
{[%clk 0:01:21]} 38. bxc4+ {[%clk 0:01:29.6]} 38... Kc6 {[%clk 0:01:18.7]} 39.
Ke2 {[%clk 0:01:18.9]} 39... Bd6 {[%clk 0:01:14.5]} 40. f4 {[%clk 0:01:14.1]}
40... e5 {[%clk 0:01:08.4]} 41. fxe5 {[%clk 0:01:13.4]} 41... Bxe5 {[%clk
0:01:09.3]} 42. Kf3 {[%clk 0:01:04.4]} 42... Kc5 {[%clk 0:01:02]} 43. Nf1 {[%clk
0:01:04.6]} 43... g6 {[%clk 0:00:54.9]} 44. Ne3 {[%clk 0:01:03.8]} 44... Kd4
{[%clk 0:00:30.7]} 45. Nd5 {[%clk 0:01:00.2]} 45... Kxc4 {[%clk 0:00:20.1]} 46.
Ne7 {[%clk 0:01:00.1]} 46... Kd4 {[%clk 0:00:17.3]} 47. Nxg6 {[%clk 0:00:59.9]}
47... Bd6 {[%clk 0:00:17]} 48. Nf4 {[%clk 0:00:59.4]} 48... Ke5 {[%clk
0:00:17.5]} 49. Nxh5 {[%clk 0:00:59.1]} 49... Ke6 {[%clk 0:00:17.2]} 50. Nf4+
{[%clk 0:00:58.1]} 50... Kf6 {[%clk 0:00:17.2]} 51. Nd5+ {[%clk 0:00:57.8]}
51... Ke5 {[%clk 0:00:16.7]} 52. Ne3 {[%clk 0:00:58.5]} 52... Kf6 {[%clk
0:00:16.6]} 53. Ng2 {[%clk 0:00:55]} 53... Be5 {[%clk 0:00:16.5]} 54. Ne1 {[%clk
0:00:54.1]} 54... Bd6 {[%clk 0:00:16.8]} 55. Nd3 {[%clk 0:00:52.9]} 55... Ke6
{[%clk 0:00:16.3]} 56. Nf4+ {[%clk 0:00:44.7]} 56... Kf6 {[%clk 0:00:16.5]} 57.
Ke2 {[%clk 0:00:43.7]} 57... Bc5 {[%clk 0:00:15.8]} 58. Kd3 {[%clk 0:00:39.1]}
58... Bf2 {[%clk 0:00:11.5]} 59. Ne2 {[%clk 0:00:38.8]} 59... Kg6 {[%clk
0:00:10.1]} 60. Kc4 {[%clk 0:00:37.8]} 60... Kh5 {[%clk 0:00:10.7]} 61. Kd5
{[%clk 0:00:37.9]} 61... Kg4 {[%clk 0:00:10.9]} 62. Ke5 {[%clk 0:00:36.4]} 62...
f4 {[%clk 0:00:10.4]} 63. gxf4 {[%clk 0:00:31.9]} 63... Bxh4 {[%clk 0:00:09.8]}
64. f5 {[%clk 0:00:31.3]} 64... Bd8 {[%clk 0:00:09.3]} 65. Ke6 {[%clk
0:00:31.1]} 65... Kg5 {[%clk 0:00:08.9]} 66. Ng3 {[%clk 0:00:30.6]} 66... Kh6
{[%clk 0:00:09]} 67. Kf7 {[%clk 0:00:28.6]} 67... Bh4 {[%clk 0:00:08.7]} 68. Ne4
{[%clk 0:00:28.1]} 68... Kh7 {[%clk 0:00:08.2]} 69. Nf6+ {[%clk 0:00:27.2]}
69... Kh6 {[%clk 0:00:07.4]} 70. Ke6 {[%clk 0:00:26.2]} 70... Kg5 {[%clk
0:00:07.4]} 71. Ng8 {[%clk 0:00:23.9]} 71... Kf4 {[%clk 0:00:07.1]} 72. Ne7
{[%clk 0:00:22.9]} 72... Bg5 {[%clk 0:00:06.2]} 73. Ng6+ {[%clk 0:00:20.7]}
73... Kg4 {[%clk 0:00:06.7]} 74. Ne5+ {[%clk 0:00:20.7]} 74... Kf4 {[%clk
0:00:05.8]} 75. Nc6 {[%clk 0:00:20.6]} 75... Bh4 {[%clk 0:00:05.4]} 76. Nd4
{[%clk 0:00:20.3]} 76... Bg5 {[%clk 0:00:04.8]} 77. Kf7 {[%clk 0:00:19.2]} 77...
Ke5 {[%clk 0:00:04]} 78. Kg6 {[%clk 0:00:19]} 78... Bd8 {[%clk 0:00:03.8]} 79.
Nc6+ {[%clk 0:00:19]} 79... Kd6 {[%clk 0:00:02.7]} 80. Nxd8 {[%clk 0:00:19.7]}
80... Ke7 {[%clk 0:00:03.4]} 81. f6+ {[%clk 0:00:19.3]} 81... Kxd8 {[%clk
0:00:03.6]} 82. f7 {[%clk 0:00:19.3]} 82... Ke7 {[%clk 0:00:04.5]} 83. Kg7
{[%clk 0:00:19.1]} 1-0

[Event "Late-Titled-Tuesday-Blitz-September-05-2023"]
[Site "Chess.com"]
[Date "2023.09.05"]
[Round "4"]
[White "Chessdreamer2020"]
[Black "IMSlavin"]
[Result "1/2-1/2"]
[WhiteElo "2498"]
[BlackElo "2171"]
[TimeControl "180+1"]
[EndTime "14:42:25 PDT"]
[Termination "Game drawn by agreement"]

1. e4 {[%clk 0:03:00.5]} 1... Nc6 {[%clk 0:03:00.2]} 2. Nf3 {[%clk 0:03:00.2]}
2... d6 {[%clk 0:03:00.5]} 3. d4 {[%clk 0:03:00.1]} 3... Nf6 {[%clk 0:03:01.1]}
4. d5 {[%clk 0:02:59.5]} 4... Ne5 {[%clk 0:03:00.7]} 5. Nxe5 {[%clk 0:02:59.7]}
5... dxe5 {[%clk 0:03:01.3]} 6. Bd3 {[%clk 0:02:59.8]} 6... e6 {[%clk
0:03:00.8]} 7. c4 {[%clk 0:02:59.5]} 7... exd5 {[%clk 0:03:00.5]} 8. cxd5 {[%clk
0:03:00.4]} 8... a6 {[%clk 0:03:00.4]} 9. Nc3 {[%clk 0:03:00.5]} 9... Bd6 {[%clk
0:03:00.9]} 10. O-O {[%clk 0:03:00.5]} 10... h6 {[%clk 0:03:01.4]} 11. f4 {[%clk
0:02:53.8]} 11... O-O {[%clk 0:02:37.1]} 12. f5 {[%clk 0:02:53.3]} 12... c6
{[%clk 0:02:16]} 13. dxc6 {[%clk 0:02:46.5]} 13... bxc6 {[%clk 0:02:15.9]} 14.
Be3 {[%clk 0:02:45.7]} 14... a5 {[%clk 0:02:11]} 15. Na4 {[%clk 0:02:42.8]}
15... Ba6 {[%clk 0:02:00.6]} 16. Bxa6 {[%clk 0:02:42]} 16... Rxa6 {[%clk
0:02:00.2]} 17. Qd3 {[%clk 0:02:31.6]} 17... Ra8 {[%clk 0:01:45.6]} 18. Rfd1
{[%clk 0:02:31.7]} 18... Bb4 {[%clk 0:01:39.3]} 19. Qc4 {[%clk 0:02:30.4]} 19...
Qc7 {[%clk 0:01:24.2]} 20. Rac1 {[%clk 0:02:30.5]} 20... Rfd8 {[%clk 0:01:12.7]}
21. Rxd8+ {[%clk 0:02:27.6]} 21... Qxd8 {[%clk 0:00:49.1]} 22. Qxc6 {[%clk
0:02:27.5]} 22... Kh7 {[%clk 0:00:46.4]} 23. a3 {[%clk 0:02:24.5]} 23... Bd2
{[%clk 0:00:28]} 24. Bb6 {[%clk 0:02:14.5]} 24... Qd3 {[%clk 0:00:20.4]} 25. Qc2
{[%clk 0:01:48.4]} 25... Be3+ {[%clk 0:00:19.3]} 26. Kh1 {[%clk 0:01:48.1]}
26... Qxc2 {[%clk 0:00:19.4]} 27. Rxc2 {[%clk 0:01:48.7]} 27... Bxb6 {[%clk
0:00:19.7]} 28. Nxb6 {[%clk 0:01:49.6]} 28... Rb8 {[%clk 0:00:20.6]} 29. Nc4
{[%clk 0:01:46.4]} 29... Nxe4 {[%clk 0:00:20.4]} 30. Nxa5 {[%clk 0:01:44.9]}
30... Rd8 {[%clk 0:00:17.7]} 31. g4 {[%clk 0:01:33.4]} 31... h5 {[%clk
0:00:15.9]} 32. h3 {[%clk 0:01:32.8]} 32... hxg4 {[%clk 0:00:16]} 33. hxg4
{[%clk 0:01:33.7]} 33... Nf6 {[%clk 0:00:16.1]} 34. g5 {[%clk 0:01:22.1]} 34...
Ne4 {[%clk 0:00:16.2]} 35. Nc4 {[%clk 0:01:12.7]} 35... Ng3+ {[%clk 0:00:15.4]}
36. Kg2 {[%clk 0:01:11.4]} 36... Nxf5 {[%clk 0:00:16.2]} 37. g6+ {[%clk
0:01:04.9]} 37... fxg6 {[%clk 0:00:15.1]} 38. b4 {[%clk 0:01:01.6]} 38... e4
{[%clk 0:00:15.2]} 39. b5 {[%clk 0:00:58.1]} 39... Rc8 {[%clk 0:00:14.9]} 40. b6
{[%clk 0:00:56.3]} 40... Nd4 {[%clk 0:00:06]} 41. Rc3 {[%clk 0:00:47.1]} 41...
e3 {[%clk 0:00:04.5]} 42. b7 {[%clk 0:00:45.1]} 42... Rb8 {[%clk 0:00:04.9]} 43.
Nd6 {[%clk 0:00:42]} 43... e2 {[%clk 0:00:04.7]} 44. Re3 {[%clk 0:00:42.5]}
44... Nf5 {[%clk 0:00:03.1]} 45. Nxf5 {[%clk 0:00:40.5]} 45... gxf5 {[%clk
0:00:04]} 46. Rxe2 {[%clk 0:00:35.7]} 46... Rxb7 {[%clk 0:00:04.9]} 47. Re3
{[%clk 0:00:36.1]} 47... Ra7 {[%clk 0:00:05.8]} 48. Kg3 {[%clk 0:00:35.8]} 48...
Kg6 {[%clk 0:00:06.7]} 49. Kf4 {[%clk 0:00:36.1]} 49... Ra4+ {[%clk 0:00:06.4]}
50. Kf3 {[%clk 0:00:36.6]} 50... Kg5 {[%clk 0:00:06.3]} 51. Rb3 {[%clk 0:00:36]}
51... g6 {[%clk 0:00:07.2]} 52. Kg3 {[%clk 0:00:35.8]} 52... Kh5 {[%clk
0:00:07.7]} 53. Kf3 {[%clk 0:00:34.2]} 53... g5 {[%clk 0:00:07.8]} 54. Rc3
{[%clk 0:00:34]} 54... f4 {[%clk 0:00:08.4]} 55. Kg2 {[%clk 0:00:31]} 55... Re4
{[%clk 0:00:08.5]} 56. Kf2 {[%clk 0:00:31.9]} 56... Kg4 {[%clk 0:00:09.1]} 57.
Rb3 {[%clk 0:00:31]} 57... Rd4 {[%clk 0:00:09.5]} 58. Rb2 {[%clk 0:00:27.2]}
58... Rd3 {[%clk 0:00:09.2]} 59. Ra2 {[%clk 0:00:26.5]} 59... Rd5 {[%clk
0:00:09.3]} 60. a4 {[%clk 0:00:26.9]} 60... Ra5 {[%clk 0:00:10.2]} 61. Ra3
{[%clk 0:00:27.5]} 61... Kf5 {[%clk 0:00:10.7]} 62. Kg2 {[%clk 0:00:24.5]} 62...
g4 {[%clk 0:00:11.6]} 63. Kf2 {[%clk 0:00:25.1]} 63... Rc5 {[%clk 0:00:10.7]}
64. a5 {[%clk 0:00:24.9]} 64... Rc2+ {[%clk 0:00:11.6]} 65. Ke1 {[%clk
0:00:25.4]} 65... f3 {[%clk 0:00:11.7]} 66. a6 {[%clk 0:00:25.6]} 66... Rc8
{[%clk 0:00:11.5]} 67. a7 {[%clk 0:00:24.9]} 67... Ra8 {[%clk 0:00:12.4]} 68.
Kf2 {[%clk 0:00:24.9]} 68... g3+ {[%clk 0:00:13.3]} 69. Kxg3 {[%clk 0:00:24.3]}
69... Ke6 {[%clk 0:00:14.2]} 70. Kxf3 {[%clk 0:00:24.5]} 70... Kd6 {[%clk
0:00:15.1]} 71. Ke4 {[%clk 0:00:24.9]} 71... Kc6 {[%clk 0:00:16]} 72. Kd4 {[%clk
0:00:23.7]} 72... Kb6 {[%clk 0:00:16.9]} 73. Kd5 {[%clk 0:00:22.8]} 73... Rxa7
{[%clk 0:00:16.9]} 74. Rb3+ {[%clk 0:00:23.2]} 74... Ka5 {[%clk 0:00:16.7]} 75.
Kc6 {[%clk 0:00:23.4]} 75... Ra6+ {[%clk 0:00:16.3]} 76. Kc5 {[%clk 0:00:23.5]}
76... Ka4 {[%clk 0:00:16.9]} 77. Rb1 {[%clk 0:00:24]} 77... Rg6 {[%clk 0:00:17]}
78. Ra1+ {[%clk 0:00:23]} 78... Kb3 {[%clk 0:00:17.1]} 79. Rb1+ {[%clk
0:00:23.9]} 79... Kc3 {[%clk 0:00:17.2]} 80. Re1 {[%clk 0:00:23.9]} 80... Rg5+
{[%clk 0:00:16.6]} 81. Kd6 {[%clk 0:00:24.8]} 81... Kd4 {[%clk 0:00:17.3]} 82.
Rd1+ {[%clk 0:00:24.6]} 82... Kc4 {[%clk 0:00:17.4]} 83. Ke6 {[%clk 0:00:24.7]}
83... Kb4 {[%clk 0:00:17.7]} 84. Kf6 {[%clk 0:00:24.7]} 84... Rc5 {[%clk
0:00:17.5]} 85. Rd4+ {[%clk 0:00:25]} 85... Rc4 {[%clk 0:00:16.8]} 86. Rd6
{[%clk 0:00:25.9]} 86... Rc5 {[%clk 0:00:17.6]} 87. Ke6 {[%clk 0:00:25.3]} 87...
Kc4 {[%clk 0:00:18.3]} 88. Rd2 {[%clk 0:00:26.2]} 88... Kc3 {[%clk 0:00:18]} 89.
Rd1 {[%clk 0:00:26.6]} 89... Kc4 {[%clk 0:00:18.4]} 90. Rc1+ {[%clk 0:00:26.8]}
90... Kb4 {[%clk 0:00:18.5]} 91. Rb1+ {[%clk 0:00:26.4]} 91... Kc4 {[%clk
0:00:19]} 92. Kd6 {[%clk 0:00:26.8]} 92... Rg5 {[%clk 0:00:18.4]} 93. Rc1+
{[%clk 0:00:26.4]} 93... Kb4 {[%clk 0:00:18.8]} 94. Rb1+ {[%clk 0:00:23.3]}
1/2-1/2

[Event "Late-Titled-Tuesday-Blitz-September-05-2023"]
[Site "Chess.com"]
[Date "2023.09.05"]
[Round "5"]
[White "delqate"]
[Black "sterpfi"]
[Result "1-0"]
[WhiteElo "2372"]
[BlackElo "2140"]
[TimeControl "180+1"]
[EndTime "14:52:30 PDT"]
[Termination "delqate won by resignation"]

1. d4 {[%clk 0:02:58.1]} 1... d5 {[%clk 0:02:59.5]} 2. Nf3 {[%clk 0:02:57.8]}
2... Nf6 {[%clk 0:02:59.3]} 3. Bg5 {[%clk 0:02:55.5]} 3... Ne4 {[%clk
0:02:48.6]} 4. Bf4 {[%clk 0:02:55.8]} 4... c5 {[%clk 0:02:35.7]} 5. e3 {[%clk
0:02:55.3]} 5... Qb6 {[%clk 0:02:34.8]} 6. Nc3 {[%clk 0:02:53.6]} 6... Qa5
{[%clk 0:02:33.7]} 7. Bxb8 {[%clk 0:02:43.7]} 7... Rxb8 {[%clk 0:02:26.6]} 8.
Bb5+ {[%clk 0:02:43.3]} 8... Bd7 {[%clk 0:02:25.1]} 9. Bxd7+ {[%clk 0:02:43.7]}
9... Kxd7 {[%clk 0:02:25.1]} 10. Ne5+ {[%clk 0:02:36.8]} 10... Ke8 {[%clk
0:02:25]} 11. O-O {[%clk 0:02:27.2]} 11... Nxc3 {[%clk 0:02:15.6]} 12. bxc3
{[%clk 0:02:28.1]} 12... Qxc3 {[%clk 0:02:11.8]} 13. Qf3 {[%clk 0:02:27.7]}
13... f6 {[%clk 0:02:09.5]} 14. Qh5+ {[%clk 0:02:28]} 14... g6 {[%clk
0:02:03.4]} 15. Nxg6 {[%clk 0:02:28.2]} 15... hxg6 {[%clk 0:02:04.3]} 16. Qxh8
{[%clk 0:02:28.7]} 16... cxd4 {[%clk 0:01:57.8]} 17. exd4 {[%clk 0:02:24.1]}
17... Qxd4 {[%clk 0:01:57.1]} 18. Qg8 {[%clk 0:02:23.6]} 18... Qe4 {[%clk
0:01:51.1]} 19. Rfe1 {[%clk 0:02:21.6]} 19... Qf5 {[%clk 0:01:50.7]} 20. Rad1
{[%clk 0:02:19.6]} 20... e6 {[%clk 0:01:44.4]} 21. Rxe6+ {[%clk 0:02:12.2]}
21... Kd7 {[%clk 0:01:40.5]} 22. Qf7+ {[%clk 0:02:12.5]} 1-0

[Event "Late-Titled-Tuesday-Blitz-September-05-2023"]
[Site "Chess.com"]
[Date "2023.09.05"]
[Round "5"]
[White "Chessdreamer2020"]
[Black "picturesquecheck"]
[Result "1-0"]
[WhiteElo "2502"]
[BlackElo "2307"]
[TimeControl "180+1"]
[EndTime "14:53:17 PDT"]
[Termination "Chessdreamer2020 won by resignation"]

1. e4 {[%clk 0:02:58.2]} 1... c5 {[%clk 0:02:59.9]} 2. Nf3 {[%clk 0:02:57.1]}
2... d6 {[%clk 0:02:59.3]} 3. d4 {[%clk 0:02:56.8]} 3... cxd4 {[%clk 0:03:00.2]}
4. Qxd4 {[%clk 0:02:57.7]} 4... Bd7 {[%clk 0:02:59.4]} 5. Be2 {[%clk 0:02:56.5]}
5... Nc6 {[%clk 0:02:59.6]} 6. Qe3 {[%clk 0:02:56.9]} 6... Nf6 {[%clk
0:02:59.9]} 7. h3 {[%clk 0:02:56.6]} 7... e6 {[%clk 0:02:59.5]} 8. O-O {[%clk
0:02:56.9]} 8... Be7 {[%clk 0:02:59.9]} 9. c4 {[%clk 0:02:57.4]} 9... O-O {[%clk
0:02:59.8]} 10. Nc3 {[%clk 0:02:57.2]} 10... a6 {[%clk 0:02:59]} 11. b3 {[%clk
0:02:57]} 11... Qc7 {[%clk 0:02:57.9]} 12. Rd1 {[%clk 0:02:56.4]} 12... Rfd8
{[%clk 0:02:58.1]} 13. Bb2 {[%clk 0:02:54.3]} 13... Rac8 {[%clk 0:02:55.4]} 14.
Rac1 {[%clk 0:02:54.8]} 14... Qb8 {[%clk 0:02:52.2]} 15. Bf1 {[%clk 0:02:54.9]}
15... Be8 {[%clk 0:02:50]} 16. Na4 {[%clk 0:02:49.1]} 16... Nb4 {[%clk
0:02:33.8]} 17. Nb6 {[%clk 0:02:42]} 17... Rc6 {[%clk 0:02:32.5]} 18. a3 {[%clk
0:02:32.1]} 18... Qa7 {[%clk 0:01:55.9]} 19. Nd5 {[%clk 0:02:04.3]} 19... Qxe3
{[%clk 0:01:45]} 20. Nxe7+ {[%clk 0:02:03.9]} 20... Kf8 {[%clk 0:01:45.5]} 21.
fxe3 {[%clk 0:02:04.8]} 21... Kxe7 {[%clk 0:01:43.8]} 22. axb4 {[%clk
0:02:04.9]} 22... Nxe4 {[%clk 0:01:44.4]} 23. Bxg7 {[%clk 0:01:57.9]} 23... f6
{[%clk 0:01:41.7]} 24. Bd3 {[%clk 0:01:54.4]} 24... Bg6 {[%clk 0:01:37.4]} 25.
Nh4 {[%clk 0:01:49.1]} 1-0